Cogmind - Beta 13 @@@ ROGUE MODE // 2024.03.30 @ 01:09:04 Player: gabr Result: Self-destructed Performance ------------- Evolutions (1) 500 Regions Visited (4) 800 Robots Destroyed (18) 90 Value Destroyed (418) 418 Prototype IDs (2) 40 Alien Tech Used (0) 0 Bonus (0) 0 TOTAL SCORE: 1848 Bonus ------- None Cogmind --------- Core Integrity 162/400 Matter 132/300 Energy 90/125 System Corruption 24% Temperature Cool (0) Movement Walking (260) Ox2 Location -9/Exiles Parts ------- > --- POWER (1) -------- Light Ion Engine > --- PROPULSION (4) --- Aluminum Leg Aluminum Leg > --- UTILITY (2) ------ High-capacity Storage Unit > --- WEAPON (2) ------- (None) > --- INVENTORY (20) --- Light Ion Engine Light Ion Engine Flight Unit Flight Unit Medium Storage Unit Medium Matter Pod (0) Hardened Light Armor Plating Light Assault Rifle Peak State ------------ > --- POWER ------------ Reinforced Ion Engine > --- PROPULSION ------- Aluminum Leg Aluminum Leg Aluminum Leg Aluminum Leg > --- UTILITY ---------- High-capacity Storage Unit Advanced Visual Processing Unit > --- WEAPON ----------- Assault Rifle Light Assault Rifle > --- INVENTORY -------- Light Ion Engine Light Ion Engine Light Ion Engine Flight Unit Flight Unit Medium Storage Unit Medium Matter Pod Hardened Light Armor Plating Light Assault Rifle [Rating: 13] Favorites ----------- Power Reinforced Ion Engine Engine Reinforced Ion Engine Propulsion Aluminum Leg Leg Aluminum Leg Hover Unit Hover Unit Utility Small Storage Unit Device Heat Sink Storage Small Storage Unit Processor Advanced Visual Processing Unit Weapon Small Laser Energy Gun Small Laser Energy Cannon Beam Cannon Ballistic Gun Assault Rifle Ballistic Cannon Light Cannon Build | -11 -10 -9 -9 -9 ------- Run | Yrd Mat Mat Min Exi Slots Evolved 2 | . . 2 . . Power . | . . . . . Propulsion 2 | . . 2 . . Utility . | . . . . . Weapon . | . . . . . Parts Attached 37 | 5 11 16 2 3 Power 5 | 1 . 3 . 1 Engine 5 | 1 . 3 . 1 Core . | . . . . . Reactor . | . . . . . Propulsion 14 | 2 4 8 . . Treads . | . . . . . Leg 12 | 2 2 8 . . Wheel . | . . . . . Hover 2 | . 2 . . . Flight . | . . . . . Utility 9 | . 4 3 . 2 Device 3 | . 2 1 . . Storage 4 | . 2 . . 2 Processor 2 | . . 2 . . Hackware . | . . . . . Protection . | . . . . . Artifact . | . . . . . Weapon 9 | 2 3 2 2 . Energy Gun 4 | 2 2 . . . Energy Cannon 1 | . 1 . . . Ballistic Gun 3 | . . 1 2 . Ballistic Cannon 1 | . . 1 . . Launcher . | . . . . . Special Weapon . | . . . . . Impact Weapon . | . . . . . Slashing Weapon . | . . . . . Piercing Weapon . | . . . . . Special Melee Weapon . | . . . . . Unidentified Prototypes . | . . . . . Parts Lost 10 | . . 4 . 6 Power 2 | . . 1 . 1 Propulsion 3 | . . 1 . 2 Utility 1 | . . . . 1 Weapon 4 | . . 2 . 2 Highest Loss Streak 6 | . . 2 . 6 To Critical Strikes 2 | . . 1 . 1 Average Slot Usage (%) 93 | . 82 96 95 99 Engine 11 | . 14 10 11 11 Leg 37 | . 18 42 44 44 Hover 2 | . 8 . . . Device 1 | . 3 1 . . Storage 11 | . 8 12 11 11 Processor 6 | . . 7 11 11 Energy Gun 8 | . 18 9 . . Energy Cannon 2 | . 9 . . . Ballistic Gun 8 | . . 4 17 21 Ballistic Cannon 2 | . . 5 . . Naked Turns . | . . . . . Heaviest Build 53 | 6 14 20 18 53 Greatest Support 40 | 20 20 40 40 40 Greatest Overweight (x) 1 | . 1 . . 1 Average Overweight (x) . | . . . . . Largest Inventory Capacity 20 | 5 8 8 8 20 Average Capacity 9 | 5 6 8 8 16 Most Carried 9 | 5 8 8 8 9 Average Carried 7 | 2 6 7 7 8 Final Capacity 20 | 5 8 8 8 20 Final Carried 8 | 5 8 8 8 8 Class Distribution -------------------- 100% | Mutant Dominant Class ---------------- Mutant | -10/Materials Mutant | -9/Materials Mutant | -9/Mines Mutant | -9/Exiles Resources | -11 -10 -9 -9 -9 ----------- Run | Yrd Mat Mat Min Exi Matter Collected 621 | 177 121 306 17 . Remotely . | . . . . . Salvage Created 605 | . 206 322 50 27 Parts 33 | . 9 16 6 2 Haulers Intercepted 1 | . 1 . . . Recyclers Shooed 2 | . . 2 . . Parts Field Recycled . | . . . . . Retrieved Matter . | . . . . . Parts Self-Destructed . | . . . . . Prevented . | . . . . . Kills | -11 -10 -9 -9 -9 ------- Run | Yrd Mat Mat Min Exi Combat Hostiles Destroyed 13 | . 2 8 3 . Guns 8 | . 1 4 3 . Cannons 5 | . 1 4 . . Classes Destroyed 9 | . 4 4 . 1 Hauler 1 | . 1 . . . Recycler 1 | . . 1 . . Operator 1 | . 1 . . . Watcher 1 | . 1 . . . Swarmer 5 | . . 2 3 . Grunt 6 | . 2 4 . . Brawler 1 | . . 1 . . Sentry 1 | . . 1 . . Zionite 1 | . . . . 1 Best Kill Streak 3 | . 3 3 3 1 Combat Bots Only 3 | . 1 3 3 . Max Kills in Single Turn 1 | . 1 1 1 1 Gunslinging . | . . . . . Exploded . | . . . . . Melee . | . . . . . Uniques/NPCs Destroyed . | . . . . . Combat | -11 -10 -9 -9 -9 -------- Run | Yrd Mat Mat Min Exi Hostile Shots Fired 180 | . 5 103 16 56 Missed 56 | . 1 35 2 18 Damage Taken 1556 | . 61 759 112 624 Core 254 | . 16 75 15 148 Absorbed by Shields . | . . . . . Core Remaining (%) 96 | 100 93 . . . Volleys Fired 94 | . 21 59 7 7 Largest 2 | . 2 2 1 2 Hottest 110 | . 110 80 20 40 Shots Fired 138 | . 34 89 6 9 Gun 99 | . 24 60 6 9 Cannon 39 | . 10 29 . . Launcher . | . . . . . Special . | . . . . . Kinetic 79 | . . 64 6 9 Thermal 59 | . 34 25 . . Explosive . | . . . . . Electromagnetic . | . . . . . Robot Hit Streak 10 | . 5 10 2 6 Robot Miss Streak 9 | . 3 9 2 1 Penetration Max . | . . . . . Secondary Targets . | . . . . . Shots Hit Robots 69 | . 16 43 3 7 Core Hits 31 | . 9 15 3 4 Critical Kills . | . . . . . Critical Parts Destroyed . | . . . . . Critical Strikes 2 | . 1 1 . . Burn 1 | . 1 . . . Blast 1 | . . 1 . . Melee Attacks . | . . . . . Impact . | . . . . . Slashing . | . . . . . Piercing . | . . . . . Sneak Attacks . | . . . . . Combat Hostiles . | . . . . . Follow-up Attacks . | . . . . . Damage Inflicted 972 | . 233 638 45 56 Guns 618 | . 146 371 45 56 Cannons 354 | . 87 267 . . Explosions . | . . . . . Melee . | . . . . . Ramming . | . . . . . Kinetic 553 | . . 452 45 56 Thermal 419 | . 233 186 . . Explosive . | . . . . . Electromagnetic . | . . . . . Impact . | . . . . . Slashing . | . . . . . Piercing . | . . . . . Highest Corruption 24 | . . 6 6 24 Average Corruption 6 | . . 5 6 6 Corruption Purged . | . . . . . Corruption Blocked . | . . . . . Effects 21 | . . 8 3 10 Message Errors 5 | . . 1 . 4 Matter Fused 3 | . . 1 . 2 Heat Flow Errors 3 | . . 2 . 1 Energy Discharges 2 | . . 1 1 . Data Loss (minor) 2 | . . 1 . 1 Data Loss (major) 1 | . . . 1 . Misfires 1 | . . . . 1 Alerts 3 | . . 2 . 1 Weapon Failures 1 | . . . 1 . Overload Shots . | . . . . . Overflow Damage . | . . . . . Projectiles . | . . . . . Explosions . | . . . . . Melee . | . . . . . Knockbacks 1 | . . 1 . . Impact . | . . . . . Kinetic 1 | . . 1 . . Secondary . | . . . . . Self-Inflicted Damage . | . . . . . Shots . | . . . . . Rammed . | . . . . . Targets Rammed . | . . . . . Kicked . | . . . . . Crushed . | . . . . . Highest Temperature 442 | . 442 226 . 184 Average Temperature 99 | . 142 59 . 54 Received Heat Transfer 272 | . 36 216 . 20 Effects 4 | . 4 . . . Shutdowns 1 | . 1 . . . Energy Bleed 1 | . 1 . . . Interference 2 | . 2 . . . Siege Activations . | . . . . . Robots Corrupted . | . . . . . Combat Hostiles . | . . . . . Parts Fried . | . . . . . Impact Corruptions . | . . . . . Robots Melted . | . . . . . Combat Hostiles . | . . . . . Parts Melted 1 | . . 1 . . Heat Transferred 1104 | . 679 425 . . Parts Sabotaged . | . . . . . Parts Stolen . | . . . . . Parts Stripped . | . . . . . Power Chain Reactions . | . . . . . Alert | -11 -10 -9 -9 -9 ------- Run | Yrd Mat Mat Min Exi Peak Influence 206 | . 159 206 106 . Initial 66 | . . 66 21 . Average 85 | . 110 78 95 . Maximum Alert Level 1 | . . 1 . . Low Security (%) 99 | 100 100 98 100 . Level 1 . | . . 1 . . Level 2 . | . . . . . Level 3 . | . . . . . Level 4 . | . . . . . Level 5 . | . . . . . High Security . | . . . . . Max Security . | . . . . . Squads Dispatched . | . . . . . Investigation . | . . . . . Extermination . | . . . . . Reinforcement . | . . . . . Assault . | . . . . . Garrison . | . . . . . Intercept . | . . . . . Searches Triggered . | . . . . . Construction Impeded . | . . . . . Haulers Reinforced . | . . . . . Active Scanning Responses . | . . . . . Cargo Convoy Interrupts . | . . . . . Stealth | -11 -10 -9 -9 -9 --------- Run | Yrd Mat Mat Min Exi Distress Signals 2 | . 1 1 . . Communications Jammed . | . . . . . Distress Signals . | . . . . . Times Spotted 38 | . 9 13 3 13 Peak Tracking Total 15 | . 5 4 3 15 Tactical Retreats 1 | . . . . 1 Traps | -11 -10 -9 -9 -9 ------- Run | Yrd Mat Mat Min Exi Traps Triggered . | . . . . . Indirectly . | . . . . . Trap Hack Attempts . | . . . . . Triggered . | . . . . . Disarmed . | . . . . . Reprogrammed . | . . . . . Reused . | . . . . . Traps Extracted . | . . . . . Installed . | . . . . . Triggered . | . . . . . Machines | -11 -10 -9 -9 -9 ---------- Run | Yrd Mat Mat Min Exi Machines Disabled 2 | . 1 1 . . Max in Single Turn 1 | . 1 1 . . Machines Repaired . | . . . . . Machines Dismantled . | . . . . . Machines Sabotaged . | . . . . . Overloaded Fab Kills . | . . . . . Hacking | -11 -10 -9 -9 -9 --------- Run | Yrd Mat Mat Min Exi Machines Accessed 1 | . . 1 . . Terminals 1 | . . 1 . . Fabricators . | . . . . . Repair Stations . | . . . . . Recycling Units . | . . . . . Scanalyzers . | . . . . . Garrison Access . | . . . . . Total Hacks 2 | . . 2 . . Successful 2 | . . 2 . . Failed . | . . . . . Catastrophic . | . . . . . Database Lockouts . | . . . . . Manual . | . . . . . Terminals 2 | . . 2 . . Fabricators . | . . . . . Repair Stations . | . . . . . Recycling Units . | . . . . . Scanalyzers . | . . . . . Garrison Access . | . . . . . Terminal Hacks 2 | . . 2 . . Prototype ID Bank 1 | . . 1 . . Dispatch Records 1 | . . 1 . . Fabricator Hacks . | . . . . . Repair Station Hacks . | . . . . . Recycling Unit Hacks . | . . . . . Scanalyzer . | . . . . . Garrison Access Hacks . | . . . . . Unauthorized Hacks . | . . . . . Terminals . | . . . . . Fabricators . | . . . . . Repair Stations . | . . . . . Recycling Units . | . . . . . Scanalyzers . | . . . . . Garrison Access . | . . . . . Data Cores Recovered 1 | . 1 . . . Used . | . . . . . Hacking Detections 1 | . . 1 . . Full Trace Events . | . . . . . Feedback Events . | . . . . . Feedback Blocked . | . . . . . Robot Schematics Acquired . | . . . . . Robots Built . | . . . . . Authchips . | . . . . . Time . | . . . . . Total Robot Build Rating . | . . . . . Part Schematics Acquired . | . . . . . Parts Built . | . . . . . Authchips . | . . . . . Time . | . . . . . Total Part Build Rating . | . . . . . Parts Repaired . | . . . . . Time . | . . . . . Parts Recycled . | . . . . . Recycled Matter . | . . . . . Retrieved Matter . | . . . . . Retrieved Components . | . . . . . Parts Scanalyzed . | . . . . . Part Schematics Acquired . | . . . . . Parts Damaged . | . . . . . Bothacking | -11 -10 -9 -9 -9 ------------ Run | Yrd Mat Mat Min Exi Used RIF Installer . | . . . . . Robots Hacked . | . . . . . Non-combat . | . . . . . Combat . | . . . . . Robot Hacks Applied . | . . . . . Relay Couplers Released . | . . . . . Fabnet Peak Effective % . | . . . . . Robots Rewired . | . . . . . Allies Hacked . | . . . . . Hacks Repelled . | . . . . . Allies | -11 -10 -9 -9 -9 -------- Run | Yrd Mat Mat Min Exi Total Allies . | . . . . . Largest Group . | . . . . . Highest-Rated Group . | . . . . . Highest-Rated Ally . | . . . . . Total Orders . | . . . . . Ally Attacks . | . . . . . Total Damage . | . . . . . Kills . | . . . . . Allies Corrupted . | . . . . . Allies Melted . | . . . . . Intel | -11 -10 -9 -9 -9 ------- Run | Yrd Mat Mat Min Exi Robot Analysis Total . | . . . . . Derelict Logs Recovered . | . . . . . Drone Launches . | . . . . . Drone Recoveries . | . . . . . Exploration | -11 -10 -9 -9 -9 ------------- Run | Yrd Mat Mat Min Exi Turns Passed 1427 | 51 327 633 57 359 Spaces Moved 882 | 36 234 369 30 213 Core 7 | 5 2 . . . Treads . | . . . . . Legs 788 | 31 145 369 30 213 Wheels . | . . . . . Hover 87 | . 87 . . . Flight . | . . . . . Fastest Speed 50 | 50 56 120 120 120 Average Speed 122 | 110 96 120 120 158 Slowest Speed 190 | 120 120 120 120 190 Overloaded Moves . | . . . . . Propulsion Burnouts . | . . . . . Robots Hopped . | . . . . . Cave-ins Triggered . | . . . . . Exploration Rate (%) 27 | 3 39 26 5 62 Regions Visited 4 Branch Regions 2 Pre-discovered Areas . | . . . . . Known Exits Taken . | . . . . . Unknown Exits Taken 4 | 1 1 1 1 . Scrap Searched . | . . . . . Spaces Dug . | . . . . . Terrain Destroyed . | . . . . . Melee . | . . . . . Projectile . | . . . . . AOE . | . . . . . Terrain Rammed . | . . . . . Walls Destroyed . | . . . . . Machines Disabled . | . . . . . Actions | -11 -10 -9 -9 -9 --------- Run | Yrd Mat Mat Min Exi Total 1088 | 45 303 467 45 228 Wait 38 | . 19 16 . 3 Move 878 | 35 233 368 29 213 Hop . | . . . . . Pick Up 18 | 5 8 2 3 . Fast Attach 19 | 5 8 5 1 . Attach 8 | . 3 4 . 1 Detach 3 | . . 3 . . Swap 10 | . . 7 1 2 Drop 19 | . 11 3 4 1 Fire 94 | . 21 59 7 7 Melee . | . . . . . Ram . | . . . . . Kick . | . . . . . Crush . | . . . . . Escape Stasis . | . . . . . Rewire 1 | . . . . 1 Trap . | . . . . . Miscellaneous . | . . . . . Route ------- -11/Scrapyard -10/Materials -9/Materials -9/Mines -9/Exiles (discovered 1 exit: [*Min]) History --------- Turn | Location | Event 6 | -11/Scrapyard | Discovered new exit (range 16) 52 | -11/Scrapyard | Entered Materials 303 | -10/Materials | Build established: Mutant 369 | -10/Materials | Discovered new exit (range 9) 379 | -10/Materials | Entered another Materials area 379 | -9/Materials | Evolved 2 slots: Propulsion x2 998 | -9/Materials | Discovered new exit (range 10) 1012 | -9/Materials | Entered Mines 1064 | -9/Mines | Deemed a non-threat by the Exiles lab entrance 1064 | -9/Mines | Discovered new exit (range 5) 1069 | -9/Mines | Entered Exiles 1085 | -9/Exiles | Discovered new exit (range 18) 1098 | -9/Exiles | Met 8R-AWN 1119 | -9/Exiles | Met EX-HEX 1217 | -9/Exiles | Met EX-DEC 1269 | -9/Exiles | Visited The Gauntlet 1395 | -9/Exiles | Attacked by the Exiles 1422 | -9/Exiles | System corruption reached 10% 1428 | -9/Exiles | Core integrity fell below 50% 1428 | -9/Exiles | Self-destructed Last Messages --------------- 01376_ System corrupted: Component data lost. 01395_ System corrupted: FCS attempts to trigger Lgt. Assault Rifle. 01395_ System corrupted: Lgt. Assault Rifle misfires. 01395_ EXILES: Hostile robot within lab perimeter. Defensive protocols time, folks! 01397_ Machine disabled. 01404_ DK-RAY destroyed. 01413_ W1-DM0 destroyed. 01419_ Assault Rifle destroyed. 01420_ FTML CA7ZV24VFIBJRINM 01421_ Rnf. Ion Engine destroyed. 01421_ System corrupted by crushing effect (+5). 01421_ Adv. Visual Processing Unit destroyed. 01421_ System corrupted by crushing effect (+2). 01422_ Critical hit (Destroy). 01422_ Aluminum Leg destroyed. 01426_ Lgt. Assault Rifle destroyed. 01426_ System corrupted by crushing effect (+5). 01426_ System corrupted by crushing effect (+4). 01426_ Knocked back. Map ----- +----------------------------------------------------+ | ???????????????????#"""" ""## ##""" | | ???????????????????#"" ""#### ##### | | ???????????????????#" """"##??# #???? | | ???????????????????#""" """#??## ####? | | ???????????????????## ""##??#! "!#? | | ????????????????????#"" """##???#" !#? | | ????????????????????##""" ##????#" "#? | | ?????????????????????##"""" ##?????#! ""!"#? | | ??????????????????????### #??????########? | | ????????????????????????##### ##??????????????? | | ????????????????????????????## #???????????????? | | ?????????????????????????????# #???????????????? | | ?????????????????????????????# #???????????????? | | ?????????????????????????????# #???????????????? | | ###?????########??#######????# #???????????????? | | """"???#"""""""#??#"""""""???# #???????????????? | | "?####"""""""#??#"""""""#??# #???????????????? | | ?#"""""""" "#??#" """"#??#*% #???????????????? | | "?#""#""" """#??#"" """#??# = #???????????????? | | "?#""#"" ""????"" ""???# #???????????????? | | ""###""###"""########"""###### ########????????? | | """"""" """""""" """""" """""""#????????? | | """""" """"""" caac %="#"" ""???? | | a a * " ""???? | | a a " " "#??? | | z @ z " """???? | | "" " a #"" ""???? | | """""" " """"" " "" """""#??"?"???? | | ""########"""###""###"""########"""######????????? | | ""????"" ""#""#"" ""?????? ""#???????????? | | """#??#""" ""#""#""" ""#????? """#???????????? | | "" "#??#" """"""""#" " "#?????"""""#???????????? | | """"#??#"""""""#""#"""""""#????? """"#???????????? | | """"#??#"""""""#??#"""""""#?????"""""????????????? | | #####??####"####??#########?????###??????????????? | | ??????????"""????????????????????????????????????? | | ?????????????????????????????????????????????????? | | ?????????????????????????????????????????????????? | | ?????????????????????????????????????????????????? | | | | | | | | | | | | | | | | | | | | | | | +----------------------------------------------------+ Best States ------------- Heat Dissipation 38 Energy Generation 12 Energy Capacity 265 Matter Stores 298 Matter Capacity 400 Sight Range 20 Robot Scan Range 14 Terrain Scan Density 10 Evasion (%) 55 Item Schematics ----------------- None Robot Schematics ------------------ None Fabricated ------------ Nothing Alien Tech Used ----------------- None Achievements -------------- None Challenges ------------ None Game ------ Seed DeepBladeReconfigurator Manual? 0 Play Time 00:12:07 Cumulative 25.1 hours Start 2024.03.30 @ 00:57:54 End 2024.03.30 @ 01:09:04 Sessions 1 Manual Loads 0 Difficulty Rogue Special Mode None Game No. 57 Rogue 57 Adventurer 0 Explorer 0 Win Type - Total 0 Types 0/0/0/0/0/0/0/0/0 Lore% 19 Gallery% 24 Achievement% 22 Wizard Run 0 Options --------- Layout 0 ASCII 0 Keyboard 1 Movement Numpad Keybinds 0 Fullscreen 1 Font 18/X11 Map View 76x50 Zoom Use 0% Tactical HUD 1 Map Filters NONE Filters NONE Steam 1 RUN: a038b099-748f-447b-bf0c-729b0c75b968